[Event "Titled Tuesday Blitz December 20 Late 2022"]
[White "Melkumyan, Hrant"]
[Black "Solon, Nathan"]
[WhiteFideId "13302485"]
[BlackFideId "2017229"]
[WhiteElo "2604"]
[BlackElo "2650"]
[Result "1-0"]
[Round "07"]
[TimeControl "180+1"]
[Date "2022.12.20"]
[WhiteClock "0:00:06"]
[BlackClock "0:00:01"]

1. d4 {[%clk 0:02:56]}  Nf6 {[%clk 0:02:56]} 2. c4 {[%clk 0:02:52]}  c5 {[%clk 0:02:56]} 3. d5 {[%clk 0:02:52]}  b5 {[%clk 0:02:56]} 4. cxb5 {[%clk 0:02:53]}  a6 {[%clk 0:02:57]} 5. bxa6 {[%clk 0:02:53]}  g6 {[%clk 0:02:57]} 6. Nc3 {[%clk 0:02:52]}  Bg7 {[%clk 0:02:57]} 7. e4 {[%clk 0:02:52]}  O-O {[%clk 0:02:58]} 8. Nf3 {[%clk 0:02:52]}  Qa5 {[%clk 0:02:57]} 9. Bd2 {[%clk 0:02:52]}  Bxa6 {[%clk 0:02:57]} 10. Be2 {[%clk 0:02:52]}  Qb4 {[%clk 0:02:51]} 11. Bxa6 {[%clk 0:02:22]}  Nxa6 {[%clk 0:02:50]} 12. Qc2 {[%clk 0:02:22]}  Rfb8 {[%clk 0:02:47]} 13. Rb1 {[%clk 0:02:16]}  d6 {[%clk 0:02:20]} 14. O-O {[%clk 0:02:08]}  Qb7 {[%clk 0:02:17]} 15. a3 {[%clk 0:02:06]}  Nd7 {[%clk 0:02:08]} 16. b3 {[%clk 0:02:01]}  Nc7 {[%clk 0:02:00]} 17. a4 {[%clk 0:01:54]}  Qa6 {[%clk 0:02:00]} 18. h3 {[%clk 0:01:50]}  Ne5 {[%clk 0:01:43]} 19. Nxe5 {[%clk 0:01:36]}  Bxe5 {[%clk 0:01:44]} 20. Rfe1 {[%clk 0:01:37]}  Rb7 {[%clk 0:01:41]} 21. Nd1 {[%clk 0:01:21]}  Rab8 {[%clk 0:01:38]} 22. Ne3 {[%clk 0:01:19]}  Bd4 {[%clk 0:01:27]} 23. Nc4 {[%clk 0:01:17]}  e6 {[%clk 0:01:25]} 24. dxe6 {[%clk 0:01:10]}  Nxe6 {[%clk 0:01:25]} 25. Red1 {[%clk 0:01:10]}  h5 {[%clk 0:01:14]} 26. Be1 {[%clk 0:00:57]}  Re8 {[%clk 0:00:58]} 27. a5 {[%clk 0:00:45]}  Ng5 {[%clk 0:00:50]} 28. Bc3 {[%clk 0:00:38]}  Ne6 {[%clk 0:00:42]} 29. Rd3 {[%clk 0:00:15]}  Qc6 {[%clk 0:00:34]} 30. Rf3 {[%clk 0:00:09]}  Ng5 {[%clk 0:00:29]} 31. Rd3 {[%clk 0:00:08]}  Bxc3 {[%clk 0:00:24]} 32. Qxc3 {[%clk 0:00:08]}  Nxe4 {[%clk 0:00:24]} 33. Qc2 {[%clk 0:00:06]}  d5 {[%clk 0:00:22]} 34. Nb6 {[%clk 0:00:07]}  d4 {[%clk 0:00:13]} 35. Rxd4 {[%clk 0:00:07]}  Qe6 {[%clk 0:00:09]} 36. Rdd1 {[%clk 0:00:07]}  Ra7 {[%clk 0:00:09]} 37. Ra1 {[%clk 0:00:06]}  Qf5 {[%clk 0:00:06]} 38. Re1 {[%clk 0:00:06]}  Re6 {[%clk 0:00:05]} 39. Nc4 {[%clk 0:00:06]}  Rae7 {[%clk 0:00:03]} 40. Re3 {[%clk 0:00:06]}  Qf4 {[%clk 0:00:01]} 41. Rae1 {[%clk 0:00:06]} 1-0


[Site "https://www.chess.com"]

[Event "Titled Tuesday Blitz December 20 Late 2022"]
[White "Muhammad, Shahzeb"]
[Black "Gatterer, Florian"]
[WhiteFideId "7804806"]
[BlackFideId "811688"]
[WhiteElo "2396"]
[BlackElo "2218"]
[Result "1/2-1/2"]
[Round "07"]
[TimeControl "180+1"]
[Date "2022.12.21"]
[WhiteClock "0:02:50"]
[BlackClock "0:02:32"]

1. e4 {[%clk 0:03:00]}  e5 {[%clk 0:02:58]} 2. Nf3 {[%clk 0:02:55]}  Nc6 {[%clk 0:02:47]} 3. d4 {[%clk 0:02:51]}  exd4 {[%clk 0:02:46]} 4. Nxd4 {[%clk 0:02:52]}  Nf6 {[%clk 0:02:46]} 5. Nxc6 {[%clk 0:02:52]}  bxc6 {[%clk 0:02:46]} 6. e5 {[%clk 0:02:53]}  Qe7 {[%clk 0:02:45]} 7. Qe2 {[%clk 0:02:53]}  Nd5 {[%clk 0:02:45]} 8. c4 {[%clk 0:02:54]}  Ba6 {[%clk 0:02:42]} 9. b3 {[%clk 0:02:54]}  O-O-O {[%clk 0:02:33]} 10. Bb2 {[%clk 0:02:50]}  f6 {[%clk 0:02:32]} 1/2-1/2


[Site "https://www.chess.com"]

[Event "Titled Tuesday Blitz December 20 Late 2022"]
[White "Nasir, Zehn"]
[Black "Horvath, Dominik"]
[WhiteFideId "2613239"]
[BlackFideId "1642561"]
[WhiteElo "2585"]
[BlackElo "2715"]
[Result "0-1"]
[Round "07"]
[TimeControl "180+1"]
[Date "2022.12.21"]
[WhiteClock "0:00:20"]
[BlackClock "0:01:36"]

1. d4 {[%clk 0:03:00]}  Nf6 {[%clk 0:02:55]} 2. Bf4 {[%clk 0:03:00]}  d5 {[%clk 0:02:52]} 3. e3 {[%clk 0:03:00]}  c5 {[%clk 0:02:53]} 4. c3 {[%clk 0:03:00]}  Nc6 {[%clk 0:02:53]} 5. Nd2 {[%clk 0:02:59]}  Bf5 {[%clk 0:02:53]} 6. Qb3 {[%clk 0:02:58]}  Qc8 {[%clk 0:02:39]} 7. Ngf3 {[%clk 0:02:54]}  c4 {[%clk 0:02:40]} 8. Qd1 {[%clk 0:02:47]}  b5 {[%clk 0:02:39]} 9. Be2 {[%clk 0:02:43]}  h6 {[%clk 0:02:39]} 10. O-O {[%clk 0:02:42]}  e6 {[%clk 0:02:39]} 11. Ne5 {[%clk 0:02:42]}  Nxe5 {[%clk 0:02:36]} 12. dxe5 {[%clk 0:02:32]}  Ne4 {[%clk 0:02:24]} 13. Nxe4 {[%clk 0:02:10]}  Bxe4 {[%clk 0:02:25]} 14. f3 {[%clk 0:01:54]}  Bg6 {[%clk 0:02:22]} 15. Kh1 {[%clk 0:01:47]}  Bc5 {[%clk 0:02:22]} 16. Qd2 {[%clk 0:01:38]}  O-O {[%clk 0:02:20]} 17. Bg3 {[%clk 0:01:30]}  Rb8 {[%clk 0:02:16]} 18. a3 {[%clk 0:01:29]}  a5 {[%clk 0:02:17]} 19. f4 {[%clk 0:01:29]}  b4 {[%clk 0:02:13]} 20. axb4 {[%clk 0:01:27]}  axb4 {[%clk 0:02:14]} 21. Bg4 {[%clk 0:01:04]}  bxc3 {[%clk 0:02:13]} 22. bxc3 {[%clk 0:01:04]}  Bd3 {[%clk 0:02:11]} 23. Rf2 {[%clk 0:00:53]}  Rb3 {[%clk 0:01:56]} 24. Bd1 {[%clk 0:00:52]}  Rb5 {[%clk 0:01:49]} 25. Bh4 {[%clk 0:00:46]}  Qb7 {[%clk 0:01:45]} 26. g4 {[%clk 0:00:42]}  Ra8 {[%clk 0:01:39]} 27. Rxa8+ {[%clk 0:00:39]}  Qxa8 {[%clk 0:01:40]} 28. g5 {[%clk 0:00:35]}  Rb1 {[%clk 0:01:37]} 29. Kg2 {[%clk 0:00:28]}  Qa1 {[%clk 0:01:36]} 30. Bf3 {[%clk 0:00:23]}  Rg1+ {[%clk 0:01:35]} 31. Kh3 {[%clk 0:00:20]}  Bf5+ {[%clk 0:01:36]} 0-1


[Site "https://www.chess.com"]

[Event "Titled Tuesday Blitz December 20 Late 2022"]
[White "Peatman, Carter"]
[Black "Rego, Pedro Filipe"]
[WhiteFideId "2096480"]
[BlackFideId "1904310"]
[WhiteElo "2428"]
[BlackElo "2193"]
[Result "0-1"]
[Round "07"]
[TimeControl "180+1"]
[Date "2022.12.21"]
[WhiteClock "0:00:50"]
[BlackClock "0:00:43"]

1. d4 {[%clk 0:02:59]}  Nf6 {[%clk 0:02:59]} 2. Bf4 {[%clk 0:02:59]}  d5 {[%clk 0:02:57]} 3. e3 {[%clk 0:02:59]}  c5 {[%clk 0:02:58]} 4. dxc5 {[%clk 0:03:00]}  Nc6 {[%clk 0:02:54]} 5. Bb5 {[%clk 0:03:00]}  Qa5+ {[%clk 0:02:38]} 6. Nc3 {[%clk 0:02:59]}  e6 {[%clk 0:02:22]} 7. Qd4 {[%clk 0:02:28]}  a6 {[%clk 0:02:16]} 8. b4 {[%clk 0:02:22]}  Qa3 {[%clk 0:02:10]} 9. Bxc6+ {[%clk 0:02:18]}  bxc6 {[%clk 0:02:06]} 10. Nge2 {[%clk 0:02:18]}  a5 {[%clk 0:02:01]} 11. bxa5 {[%clk 0:01:55]}  Bxc5 {[%clk 0:01:58]} 12. Qa4 {[%clk 0:01:54]}  Qxa4 {[%clk 0:01:54]} 13. Nxa4 {[%clk 0:01:55]}  Bb4+ {[%clk 0:01:55]} 14. c3 {[%clk 0:01:54]}  Bxa5 {[%clk 0:01:54]} 15. O-O {[%clk 0:01:51]}  Ba6 {[%clk 0:01:51]} 16. Rfe1 {[%clk 0:01:49]}  Nd7 {[%clk 0:01:48]} 17. Bd6 {[%clk 0:01:46]}  f6 {[%clk 0:01:40]} 18. Nd4 {[%clk 0:01:44]}  Bb5 {[%clk 0:01:36]} 19. Nc5 {[%clk 0:01:32]}  Nxc5 {[%clk 0:01:31]} 20. Bxc5 {[%clk 0:01:29]}  Bxc3 {[%clk 0:01:31]} 21. Nxb5 {[%clk 0:01:30]}  cxb5 {[%clk 0:01:26]} 22. a3 {[%clk 0:01:29]}  Kd7 {[%clk 0:01:15]} 23. Reb1 {[%clk 0:01:15]}  Bxa1 {[%clk 0:01:10]} 24. Rxa1 {[%clk 0:01:15]}  Rhc8 {[%clk 0:01:08]} 25. Bb4 {[%clk 0:01:16]}  Rc4 {[%clk 0:01:04]} 26. Rb1 {[%clk 0:01:16]}  Rac8 {[%clk 0:01:00]} 27. Kf1 {[%clk 0:01:11]}  Rc1+ {[%clk 0:00:59]} 28. Rxc1 {[%clk 0:01:11]}  Rxc1+ {[%clk 0:01:00]} 29. Ke2 {[%clk 0:01:12]}  Rc2+ {[%clk 0:01:00]} 30. Ke1 {[%clk 0:01:12]}  Ra2 {[%clk 0:00:59]} 31. Bf8 {[%clk 0:01:12]}  e5 {[%clk 0:00:57]} 32. g3 {[%clk 0:01:08]}  g6 {[%clk 0:00:54]} 33. h4 {[%clk 0:01:07]}  d4 {[%clk 0:00:53]} 34. Bc5 {[%clk 0:00:57]}  d3 {[%clk 0:00:50]} 35. Bb4 {[%clk 0:00:55]}  e4 {[%clk 0:00:48]} 36. g4 {[%clk 0:00:53]}  Ke6 {[%clk 0:00:48]} 37. h5 {[%clk 0:00:53]}  gxh5 {[%clk 0:00:48]} 38. gxh5 {[%clk 0:00:53]}  Kd5 {[%clk 0:00:47]} 39. h6 {[%clk 0:00:54]}  Kc4 {[%clk 0:00:47]} 40. Bf8 {[%clk 0:00:51]}  d2+ {[%clk 0:00:47]} 41. Ke2 {[%clk 0:00:51]}  Kc3 {[%clk 0:00:44]} 42. Bg7 {[%clk 0:00:51]}  Kc2 {[%clk 0:00:44]} 43. Bxf6 {[%clk 0:00:50]}  d1=Q# {[%clk 0:00:43]} 0-1


[Site "https://www.chess.com"]

[Event "Titled Tuesday Blitz December 20 Late 2022"]
[White "Rangel, Daniel"]
[Black "Dias, Joao Batista"]
[WhiteFideId "2124475"]
[BlackFideId "2108240"]
[WhiteElo "2225"]
[BlackElo "1898"]
[Result "1-0"]
[Round "07"]
[TimeControl "180+1"]
[Date "2022.12.21"]
[WhiteClock "0:01:07"]
[BlackClock "0:00:35"]

1. d4 {[%clk 0:03:00]}  d5 {[%clk 0:02:59]} 2. c4 {[%clk 0:03:01]}  c6 {[%clk 0:02:59]} 3. Nc3 {[%clk 0:03:00]}  Nf6 {[%clk 0:02:59]} 4. Bg5 {[%clk 0:02:57]}  h6 {[%clk 0:02:58]} 5. Bxf6 {[%clk 0:02:56]}  gxf6 {[%clk 0:02:55]} 6. cxd5 {[%clk 0:02:56]}  cxd5 {[%clk 0:02:54]} 7. e3 {[%clk 0:02:56]}  e6 {[%clk 0:02:54]} 8. Bb5+ {[%clk 0:02:53]}  Bd7 {[%clk 0:02:53]} 9. Bxd7+ {[%clk 0:02:53]}  Nxd7 {[%clk 0:02:54]} 10. Nge2 {[%clk 0:02:53]}  Rg8 {[%clk 0:02:51]} 11. g3 {[%clk 0:02:53]}  a6 {[%clk 0:02:51]} 12. O-O {[%clk 0:02:52]}  h5 {[%clk 0:02:51]} 13. h4 {[%clk 0:02:45]}  f5 {[%clk 0:02:50]} 14. Kh2 {[%clk 0:02:41]}  Bd6 {[%clk 0:02:49]} 15. Nf4 {[%clk 0:02:39]}  Nf6 {[%clk 0:02:46]} 16. Nxh5 {[%clk 0:02:35]}  Ng4+ {[%clk 0:02:40]} 17. Kg2 {[%clk 0:02:30]}  Nh6 {[%clk 0:02:22]} 18. Rh1 {[%clk 0:02:24]}  Rc8 {[%clk 0:02:07]} 19. Rc1 {[%clk 0:02:12]}  Be7 {[%clk 0:01:35]} 20. Kf1 {[%clk 0:02:05]}  Qb6 {[%clk 0:01:31]} 21. Qa4+ {[%clk 0:02:02]}  Rc6 {[%clk 0:01:28]} 22. Qb3 {[%clk 0:02:02]}  Qc7 {[%clk 0:01:26]} 23. Ke2 {[%clk 0:01:54]}  Ng4 {[%clk 0:01:07]} 24. a3 {[%clk 0:01:52]}  Rb6 {[%clk 0:00:58]} 25. Qc2 {[%clk 0:01:44]}  Rc6 {[%clk 0:00:58]} 26. Qd2 {[%clk 0:01:39]}  Kd7 {[%clk 0:00:56]} 27. Na2 {[%clk 0:01:37]}  Rc8 {[%clk 0:00:56]} 28. Rxc6 {[%clk 0:01:35]}  bxc6 {[%clk 0:00:56]} 29. Rc1 {[%clk 0:01:33]}  Qb6 {[%clk 0:00:52]} 30. Nf4 {[%clk 0:01:26]}  c5 {[%clk 0:00:52]} 31. dxc5 {[%clk 0:01:21]}  Rxc5 {[%clk 0:00:51]} 32. Nd3 {[%clk 0:01:19]}  Rb5 {[%clk 0:00:43]} 33. b4 {[%clk 0:01:17]}  f6 {[%clk 0:00:41]} 34. Qc2 {[%clk 0:01:16]}  a5 {[%clk 0:00:38]} 35. Qc8+ {[%clk 0:01:14]}  Kd6 {[%clk 0:00:38]} 36. Nc3 {[%clk 0:01:09]}  axb4 {[%clk 0:00:37]} 37. Nxb5+ {[%clk 0:01:08]}  Qxb5 {[%clk 0:00:35]} 38. Qc7# {[%clk 0:01:07]} 1-0


[Site "https://www.chess.com"]

[Event "Titled Tuesday Blitz December 20 Late 2022"]
[White "Rasulov, Vugar"]
[Black "Kleiman, Jake"]
[WhiteFideId "13402390"]
[BlackFideId "2020041"]
[WhiteElo "2509"]
[BlackElo "2664"]
[Result "1-0"]
[Round "07"]
[TimeControl "180+1"]
[Date "2022.12.20"]
[WhiteClock "0:00:50"]
[BlackClock "0:00:09"]

1. e4 {[%clk 0:02:57]}  e5 {[%clk 0:02:59]} 2. Nf3 {[%clk 0:02:56]}  Nc6 {[%clk 0:03:00]} 3. Bb5 {[%clk 0:02:57]}  a6 {[%clk 0:03:01]} 4. Ba4 {[%clk 0:02:57]}  Nf6 {[%clk 0:03:01]} 5. O-O {[%clk 0:02:57]}  b5 {[%clk 0:03:02]} 6. Bb3 {[%clk 0:02:57]}  Bc5 {[%clk 0:03:03]} 7. c3 {[%clk 0:02:56]}  d6 {[%clk 0:03:04]} 8. a4 {[%clk 0:02:56]}  Rb8 {[%clk 0:03:04]} 9. d4 {[%clk 0:02:55]}  Bb6 {[%clk 0:03:04]} 10. a5 {[%clk 0:02:53]}  Ba7 {[%clk 0:03:04]} 11. Be3 {[%clk 0:02:52]}  Ra8 {[%clk 0:03:03]} 12. Nbd2 {[%clk 0:02:50]}  O-O {[%clk 0:03:03]} 13. h3 {[%clk 0:02:49]}  h6 {[%clk 0:03:03]} 14. Re1 {[%clk 0:02:49]}  Re8 {[%clk 0:03:03]} 15. Nf1 {[%clk 0:02:34]}  exd4 {[%clk 0:02:47]} 16. Nxd4 {[%clk 0:02:33]}  Nxd4 {[%clk 0:02:46]} 17. Bxd4 {[%clk 0:02:33]}  Bxd4 {[%clk 0:02:43]} 18. cxd4 {[%clk 0:02:31]}  Bb7 {[%clk 0:02:40]} 19. f3 {[%clk 0:02:28]}  c5 {[%clk 0:02:40]} 20. Ne3 {[%clk 0:02:26]}  c4 {[%clk 0:02:35]} 21. Bc2 {[%clk 0:02:25]}  Rc8 {[%clk 0:02:33]} 22. Nf5 {[%clk 0:02:20]}  Rc7 {[%clk 0:02:02]} 23. Qd2 {[%clk 0:02:08]}  Bc8 {[%clk 0:02:01]} 24. Ne3 {[%clk 0:02:08]}  Rce7 {[%clk 0:01:54]} 25. b3 {[%clk 0:02:06]}  cxb3 {[%clk 0:01:34]} 26. Bxb3 {[%clk 0:02:07]}  Be6 {[%clk 0:01:35]} 27. Bxe6 {[%clk 0:02:01]}  fxe6 {[%clk 0:01:32]} 28. Rac1 {[%clk 0:02:01]}  Rc7 {[%clk 0:01:22]} 29. Kh2 {[%clk 0:01:40]}  Ree7 {[%clk 0:01:19]} 30. d5 {[%clk 0:01:29]}  exd5 {[%clk 0:01:10]} 31. Nf5 {[%clk 0:01:29]}  Re5 {[%clk 0:01:02]} 32. Nd4 {[%clk 0:01:21]}  Rxc1 {[%clk 0:00:45]} 33. Rxc1 {[%clk 0:01:22]}  Re8 {[%clk 0:00:31]} 34. Nc6 {[%clk 0:01:17]}  Qd7 {[%clk 0:00:31]} 35. exd5 {[%clk 0:01:18]}  Qf5 {[%clk 0:00:31]} 36. Nb4 {[%clk 0:01:11]}  Re5 {[%clk 0:00:29]} 37. Nxa6 {[%clk 0:01:04]}  Rxd5 {[%clk 0:00:29]} 38. Qe3 {[%clk 0:00:59]}  Rd3 {[%clk 0:00:25]} 39. Qe1 {[%clk 0:00:51]}  Qf4+ {[%clk 0:00:23]} 40. Kg1 {[%clk 0:00:50]}  Qd4+ {[%clk 0:00:22]} 41. Kh1 {[%clk 0:00:50]}  Kh7 {[%clk 0:00:18]} 42. Nc7 {[%clk 0:00:50]}  Ra3 {[%clk 0:00:15]} 43. Nxb5 {[%clk 0:00:48]}  Qb2 {[%clk 0:00:14]} 44. Nxa3 {[%clk 0:00:49]}  Qxa3 {[%clk 0:00:14]} 45. Ra1 {[%clk 0:00:49]}  Qb2 {[%clk 0:00:10]} 46. a6 {[%clk 0:00:49]}  Nh5 {[%clk 0:00:09]} 47. Qb1+ {[%clk 0:00:50]} 1-0


[Site "https://www.chess.com"]

[Event "Titled Tuesday Blitz December 20 Late 2022"]
[White "Roman, Rodrigo"]
[Black "Gurevich, Dmitry"]
[WhiteFideId "3701220"]
[BlackFideId "2000407"]
[WhiteElo "1995"]
[BlackElo "2506"]
[Result "0-1"]
[Round "07"]
[TimeControl "180+1"]
[Date "2022.12.21"]
[WhiteClock "0:00:03"]
[BlackClock "0:00:02"]

1. e4 {[%clk 0:02:29]}  c5 {[%clk 0:02:58]} 2. Nf3 {[%clk 0:02:29]}  d6 {[%clk 0:02:58]} 3. d4 {[%clk 0:02:15]}  cxd4 {[%clk 0:02:57]} 4. Nxd4 {[%clk 0:02:16]}  Nf6 {[%clk 0:02:57]} 5. Nc3 {[%clk 0:02:16]}  Nc6 {[%clk 0:02:57]} 6. Bg5 {[%clk 0:02:11]}  g6 {[%clk 0:02:56]} 7. Be2 {[%clk 0:02:07]}  Bg7 {[%clk 0:02:55]} 8. h4 {[%clk 0:02:05]}  Nxe4 {[%clk 0:02:42]} 9. Nxc6 {[%clk 0:02:05]}  Nxc3 {[%clk 0:02:41]} 10. Nxd8 {[%clk 0:02:05]}  Nxd1 {[%clk 0:02:41]} 11. Rxd1 {[%clk 0:02:03]}  Kxd8 {[%clk 0:02:39]} 12. Rxd6+ {[%clk 0:02:01]}  Kc7 {[%clk 0:02:31]} 13. Rd1 {[%clk 0:01:54]}  Bxb2 {[%clk 0:02:18]} 14. Bxe7 {[%clk 0:01:52]}  Bc3+ {[%clk 0:02:10]} 15. Kf1 {[%clk 0:01:44]}  Re8 {[%clk 0:02:06]} 16. Bd6+ {[%clk 0:01:43]}  Kb6 {[%clk 0:02:05]} 17. Rb1+ {[%clk 0:01:32]}  Kc6 {[%clk 0:02:04]} 18. Bf4 {[%clk 0:01:29]}  Bf5 {[%clk 0:02:00]} 19. Bb5+ {[%clk 0:01:16]}  Kc5 {[%clk 0:01:55]} 20. Bxe8 {[%clk 0:01:13]}  Rxe8 {[%clk 0:01:54]} 21. Be3+ {[%clk 0:01:13]}  Kc6 {[%clk 0:01:50]} 22. Ke2 {[%clk 0:01:14]}  b5 {[%clk 0:01:46]} 23. a3 {[%clk 0:01:10]}  a5 {[%clk 0:01:44]} 24. Rhd1 {[%clk 0:01:08]}  Bxc2 {[%clk 0:01:36]} 25. Rdc1 {[%clk 0:00:59]}  Bxb1 {[%clk 0:01:34]} 26. Rxc3+ {[%clk 0:01:00]}  Kd6 {[%clk 0:01:27]} 27. Rb3 {[%clk 0:00:56]}  Ba2 {[%clk 0:01:26]} 28. Rd3+ {[%clk 0:00:45]}  Kc6 {[%clk 0:01:25]} 29. Rc3+ {[%clk 0:00:46]}  Bc4+ {[%clk 0:01:25]} 30. Kf3 {[%clk 0:00:46]}  a4 {[%clk 0:01:23]} 31. Kf4 {[%clk 0:00:44]}  f6 {[%clk 0:01:20]} 32. g4 {[%clk 0:00:43]}  Kd5 {[%clk 0:01:19]} 33. f3 {[%clk 0:00:43]}  h6 {[%clk 0:01:16]} 34. h5 {[%clk 0:00:40]}  g5+ {[%clk 0:01:12]} 35. Kf5 {[%clk 0:00:40]}  Re6 {[%clk 0:01:02]} 36. Kg6 {[%clk 0:00:35]}  f5+ {[%clk 0:00:54]} 37. Kxf5 {[%clk 0:00:31]}  Ra6 {[%clk 0:00:53]} 38. Rc1 {[%clk 0:00:20]}  b4 {[%clk 0:00:51]} 39. axb4 {[%clk 0:00:20]}  a3 {[%clk 0:00:50]} 40. Rd1+ {[%clk 0:00:16]}  Kc6 {[%clk 0:00:47]} 41. Bd4 {[%clk 0:00:17]}  Kb5 {[%clk 0:00:44]} 42. Bc3 {[%clk 0:00:16]}  a2 {[%clk 0:00:42]} 43. Ba1 {[%clk 0:00:16]}  Ra3 {[%clk 0:00:38]} 44. Kg6 {[%clk 0:00:14]}  Ra6+ {[%clk 0:00:32]} 45. Kg7 {[%clk 0:00:11]}  Kxb4 {[%clk 0:00:29]} 46. f4 {[%clk 0:00:11]}  gxf4 {[%clk 0:00:27]} 47. g5 {[%clk 0:00:11]}  hxg5 {[%clk 0:00:27]} 48. h6 {[%clk 0:00:12]}  f3 {[%clk 0:00:22]} 49. h7 {[%clk 0:00:12]}  Ra7+ {[%clk 0:00:20]} 50. Kg6 {[%clk 0:00:10]}  Rxh7 {[%clk 0:00:19]} 51. Kxh7 {[%clk 0:00:10]}  g4 {[%clk 0:00:17]} 52. Bd4 {[%clk 0:00:06]}  g3 {[%clk 0:00:15]} 53. Be5 {[%clk 0:00:04]}  g2 {[%clk 0:00:06]} 54. Bd4 {[%clk 0:00:03]}  Bf1 {[%clk 0:00:05]} 55. Kg6 {[%clk 0:00:02]}  Kb3 {[%clk 0:00:05]} 56. Kf5 {[%clk 0:00:02]}  Kc2 {[%clk 0:00:03]} 57. Ra1 {[%clk 0:00:03]}  Kb3 {[%clk 0:00:03]} 58. Ke4 {[%clk 0:00:03]}  Be2 {[%clk 0:00:02]} 0-1


[Site "https://www.chess.com"]

[Event "Titled Tuesday Blitz December 20 Late 2022"]
[White "Rorrer, Grayson"]
[Black "Eljanov, Pavel"]
[WhiteFideId "30944996"]
[BlackFideId "14102951"]
[WhiteElo "2200"]
[BlackElo "2598"]
[Result "0-1"]
[Round "07"]
[TimeControl "180+1"]
[Date "2022.12.20"]
[WhiteClock "0:00:44"]
[BlackClock "0:00:52"]

1. e4 {[%clk 0:03:00]}  c6 {[%clk 0:03:00]} 2. d4 {[%clk 0:02:58]}  d5 {[%clk 0:03:00]} 3. exd5 {[%clk 0:02:59]}  cxd5 {[%clk 0:03:00]} 4. Bd3 {[%clk 0:03:00]}  Nf6 {[%clk 0:03:00]} 5. h3 {[%clk 0:03:00]}  g6 {[%clk 0:02:58]} 6. Nf3 {[%clk 0:02:59]}  Bf5 {[%clk 0:02:58]} 7. O-O {[%clk 0:02:58]}  Nc6 {[%clk 0:02:56]} 8. Re1 {[%clk 0:02:54]}  e6 {[%clk 0:02:54]} 9. c3 {[%clk 0:02:51]}  Bxd3 {[%clk 0:02:46]} 10. Qxd3 {[%clk 0:02:52]}  Bd6 {[%clk 0:02:42]} 11. Bh6 {[%clk 0:02:29]}  Rg8 {[%clk 0:02:21]} 12. Nbd2 {[%clk 0:02:19]}  Qc7 {[%clk 0:02:21]} 13. a4 {[%clk 0:02:14]}  O-O-O {[%clk 0:02:19]} 14. b4 {[%clk 0:02:09]}  Kb8 {[%clk 0:02:13]} 15. Bg5 {[%clk 0:02:00]}  Be7 {[%clk 0:02:10]} 16. a5 {[%clk 0:02:00]}  Nh5 {[%clk 0:02:02]} 17. Bxe7 {[%clk 0:01:57]}  Nxe7 {[%clk 0:02:02]} 18. Ne5 {[%clk 0:01:54]}  Nc6 {[%clk 0:01:40]} 19. Ndf3 {[%clk 0:01:43]}  Nxe5 {[%clk 0:01:39]} 20. Nxe5 {[%clk 0:01:43]}  f6 {[%clk 0:01:39]} 21. Ng4 {[%clk 0:01:41]}  Nf4 {[%clk 0:01:33]} 22. Qf3 {[%clk 0:01:33]}  Rgf8 {[%clk 0:01:28]} 23. h4 {[%clk 0:01:25]}  h5 {[%clk 0:01:25]} 24. Nh2 {[%clk 0:01:24]}  e5 {[%clk 0:01:23]} 25. g3 {[%clk 0:01:10]}  Ne6 {[%clk 0:01:20]} 26. Nf1 {[%clk 0:01:09]}  e4 {[%clk 0:01:19]} 27. Qe2 {[%clk 0:01:08]}  f5 {[%clk 0:01:19]} 28. a6 {[%clk 0:01:03]}  b6 {[%clk 0:01:18]} 29. f4 {[%clk 0:01:00]}  Qxc3 {[%clk 0:01:16]} 30. Rac1 {[%clk 0:00:58]}  Qxb4 {[%clk 0:01:10]} 31. Kg2 {[%clk 0:00:53]}  Nxd4 {[%clk 0:01:09]} 32. Qa2 {[%clk 0:00:54]}  Qb3 {[%clk 0:00:57]} 33. Qd2 {[%clk 0:00:49]}  Nf3 {[%clk 0:00:55]} 34. Qe2 {[%clk 0:00:44]}  Nxe1+ {[%clk 0:00:52]} 0-1


[Site "https://www.chess.com"]

[Event "Titled Tuesday Blitz December 20 Late 2022"]
[White "Rose, Felix"]
[Black "Szyszylo, Rafal"]
[WhiteFideId "5105722"]
[BlackFideId "1109626"]
[WhiteElo "2039"]
[BlackElo "1981"]
[Result "1-0"]
[Round "07"]
[TimeControl "180+1"]
[Date "2022.12.21"]
[WhiteClock "0:00:45"]
[BlackClock "0:00:07"]

1. e4 {[%clk 0:03:00]}  d6 {[%clk 0:03:00]} 2. d4 {[%clk 0:02:59]}  g6 {[%clk 0:03:01]} 3. Nc3 {[%clk 0:02:58]}  Nf6 {[%clk 0:03:01]} 4. Nf3 {[%clk 0:02:58]}  Bg7 {[%clk 0:03:01]} 5. h3 {[%clk 0:02:58]}  O-O {[%clk 0:03:01]} 6. Be3 {[%clk 0:02:59]}  c6 {[%clk 0:03:01]} 7. a4 {[%clk 0:02:59]}  a5 {[%clk 0:03:00]} 8. Be2 {[%clk 0:02:57]}  Na6 {[%clk 0:03:00]} 9. O-O {[%clk 0:02:58]}  Nb4 {[%clk 0:02:59]} 10. Qd2 {[%clk 0:02:56]}  Qc7 {[%clk 0:02:58]} 11. Rfe1 {[%clk 0:02:54]}  e5 {[%clk 0:02:58]} 12. dxe5 {[%clk 0:02:53]}  dxe5 {[%clk 0:02:58]} 13. Bc4 {[%clk 0:02:52]}  Rd8 {[%clk 0:02:55]} 14. Qe2 {[%clk 0:02:51]}  h6 {[%clk 0:02:44]} 15. Red1 {[%clk 0:02:45]}  Nh5 {[%clk 0:02:33]} 16. Rxd8+ {[%clk 0:02:43]}  Qxd8 {[%clk 0:02:33]} 17. Rd1 {[%clk 0:02:43]}  Qe7 {[%clk 0:02:34]} 18. Qd2 {[%clk 0:02:42]}  Nf4 {[%clk 0:02:27]} 19. Qd8+ {[%clk 0:02:21]}  Qf8 {[%clk 0:02:01]} 20. Bc5 {[%clk 0:02:08]}  Qxd8 {[%clk 0:01:56]} 21. Rxd8+ {[%clk 0:02:09]}  Kh7 {[%clk 0:01:57]} 22. Bxf7 {[%clk 0:02:07]}  Bf6 {[%clk 0:01:38]} 23. Re8 {[%clk 0:01:49]}  b6 {[%clk 0:01:00]} 24. Bxb6 {[%clk 0:01:26]}  Bb7 {[%clk 0:00:57]} 25. Rxa8 {[%clk 0:01:24]}  Bxa8 {[%clk 0:00:58]} 26. Bb3 {[%clk 0:01:21]}  c5 {[%clk 0:00:40]} 27. Bxa5 {[%clk 0:01:16]}  Nc6 {[%clk 0:00:39]} 28. Bc7 {[%clk 0:01:14]}  Nd4 {[%clk 0:00:38]} 29. Nxe5 {[%clk 0:01:08]}  Nxb3 {[%clk 0:00:32]} 30. cxb3 {[%clk 0:01:08]}  Ne6 {[%clk 0:00:28]} 31. Bd6 {[%clk 0:01:07]}  Nd4 {[%clk 0:00:23]} 32. Nd7 {[%clk 0:01:01]}  Bd8 {[%clk 0:00:23]} 33. e5 {[%clk 0:00:55]}  Nxb3 {[%clk 0:00:17]} 34. e6 {[%clk 0:00:55]}  Bc6 {[%clk 0:00:15]} 35. Nxc5 {[%clk 0:00:53]}  Nxc5 {[%clk 0:00:15]} 36. Bxc5 {[%clk 0:00:54]}  Kg7 {[%clk 0:00:10]} 37. b4 {[%clk 0:00:54]}  Kf6 {[%clk 0:00:09]} 38. b5 {[%clk 0:00:53]}  Be8 {[%clk 0:00:09]} 39. e7 {[%clk 0:00:53]}  Ba5 {[%clk 0:00:07]} 40. Nd5+ {[%clk 0:00:50]}  Ke5 {[%clk 0:00:07]} 41. Ne3 {[%clk 0:00:45]} 1-0


[Site "https://www.chess.com"]